[Event "SVK Amateur-ch 2020"]
[Site "Topolcany"]
[Date "2020.07.12"]
[Round "5.22"]
[White "Sarkozi, Szabolcs"]
[Black "Holly, Andrej"]
[Result "1-0"]
[ECO "B27"]
[WhiteElo "2100"]
[BlackElo "2011"]
[Annotator "ChessBase"]
[PlyCount "71"]
[EventDate "2020.07.10"]
[EventType "swiss"]
[EventCountry "SVK"]
[SourceTitle "playchess.com"]
[Source "ChessBase"]
[SourceQuality "1"]
[TimeControl "3600+30"]

1. e4 {[%emt 0:00:00]} c5 {[%emt 0:00:00]} 2. Nf3 {[%emt 0:00:14]} g6 {[%emt 0:00:00]} 3. d4 {[%emt 0:00:03]} cxd4 {[%emt 0:00:00]} 4. Qxd4 {[%emt 0:00:10]} Nf6 {[%emt 0:00:03]} 5. e5 {[%emt 0:00:05]} Nc6 {[%emt 0:00:08]} 6. Qa4 {[%emt 0:00:09]} Nd5 {[%emt 0:00:47]} 7. Qb3 {[%emt 0:00:31]} e6 {[%emt 0:03:34]} 8. c4 {[%emt 0:08:52]} Nb6 {[%emt 0:00:37]} 9. Be3 {[%emt 0:03:27]} Qc7 {[%emt 0:02:30]} 10. Nc3 {[%emt 0:10:45]} Nxe5 {[%emt 0:07:02]} 11. Nxe5 {[%emt 0:00:05]} Qxe5 {[%emt 0:00:27]} 12. Be2 {[%emt 0:00:51]} Be7 {[%emt 0:05:04]} 13. Rd1 {[%emt 0:03:53]} O-O {[%emt 0:01:08]} 14. O-O {[%emt 0:02:48]} d6 {[%emt 0:02:31]} 15. Bf3 {[%emt 0:10:29]} Qa5 {[%emt 0:07:41]} 16. Nb5 {[%emt 0:07:58]} Bd7 {[%emt 0:00:20]} 17. Bd2 {[%emt 0:05:56]} Qa4 {[%emt 0:00:32]} 18. Bh6 {[%emt 0:03:11]} Qxb3 {[%emt 0:05:40]} 19. axb3 {[%emt 0:00:26]} Bxb5 {[%emt 0:00:20]} 20. Bxf8 {[%emt 0:00:43]} Kxf8 {[%emt 0:00:48]} 21. cxb5 {[%emt 0:00:13]} d5 {[%emt 0:00:39]} 22. Ra1 {[%emt 0:01:02]} Bc5 {[%emt 0:01:33]} 23. Rfc1 {[%emt 0:00:49]} Nd7 {[%emt 0:02:31]} 24. b4 {[%emt 0:00:51]} Bb6 {[%emt 0:01:03]} 25. Rc2 {[%emt 0:02:34]} Ne5 {[%emt 0:00:20]} 26. Be2 {[%emt 0:00:47]} d4 {[%emt 0:00:47]} 27. Rac1 {[%emt 0:00:43]} Rd8 {[%emt 0:01:37]} 28. Rc8 {[%emt 0:00:51]} Ke7 {[%emt 0:00:15]} 29. Rxd8 {[%emt 0:00:39]} Kxd8 {[%emt 0:00:01]} 30. Kf1 {[%emt 0:00:17]} Kd7 {[%emt 0:01:23]} 31. f4 {[%emt 0:00:23]} d3 {[%emt 0:00:53]} 32. fxe5 {[%emt 0:00:37]} dxe2+ {[%emt 0:00:02]} 33. Kxe2 {[%emt 0:00:01]} Ke7 {[%emt 0:01:30]} 34. Kd3 {[%emt 0:01:28]} Kd7 {[%emt 0:00:24]} 35. Ke4 {[%emt 0:00:08]} Bf2 {[%emt 0:00:37]} 36. Rf1 {[%emt 0:00:10]} 1-0

[Event "SVK Amateur-ch 2020"]
[Site "Topolcany"]
[Date "2020.07.12"]
[Round "5.23"]
[White "Kulhanek, Jachym"]
[Black "Nikanova, Ekaterina"]
[Result "1/2-1/2"]
[ECO "B22"]
[WhiteElo "1926"]
[BlackElo "2116"]
[Annotator "ChessBase"]
[PlyCount "110"]
[EventDate "2020.07.10"]
[EventType "swiss"]
[EventCountry "SVK"]
[SourceTitle "playchess.com"]
[Source "ChessBase"]
[SourceQuality "1"]
[TimeControl "3600+30"]

1. e4 {[%emt 0:00:00]} c5 {[%emt 0:00:00]} 2. c3 {[%emt 0:00:00]} g6 {[%emt 0:00:00]} 3. d4 {[%emt 0:00:00]} cxd4 {[%emt 0:00:00]} 4. cxd4 {[%emt 0:00:00]} d5 {[%emt 0:00:00]} 5. e5 {[%emt 0:00:00]} Bg7 {[%emt 0:00:00]} 6. Nc3 {[%emt 0:00:03]} Nc6 {[%emt 0:00:22]} 7. Be2 {[%emt 0:00:12]} f6 {[%emt 0:00:57]} 8. exf6 {[%emt 0:02:01]} exf6 {[%emt 0:00:19]} 9. h3 {[%emt 0:00:29]} Be6 {[%emt 0:01:26]} 10. Nf3 {[%emt 0:00:37]} Nge7 {[%emt 0:00:12]} 11. O-O {[%emt 0:00:51]} O-O {[%emt 0:00:19]} 12. Re1 {[%emt 0:00:05]} Bf7 {[%emt 0:03:24]} 13. Bf1 {[%emt 0:00:52]} Nf5 {[%emt 0:03:11]} 14. Bf4 {[%emt 0:00:14]} a6 {[%emt 0:01:59]} 15. Rc1 {[%emt 0:05:05]} g5 {[%emt 0:12:50]} 16. Bh2 {[%emt 0:00:22]} h5 {[%emt 0:01:28]} 17. g4 {[%emt 0:09:55]} hxg4 {[%emt 0:02:19]} 18. hxg4 {[%emt 0:00:06]} Nh6 {[%emt 0:00:24]} 19. Bh3 {[%emt 0:02:29]} f5 {[%emt 0:07:47]} 20. Ne5 {[%emt 0:05:00]} f4 {[%emt 0:00:50]} 21. Bg2 {[%emt 0:16:31]} Nxe5 {[%emt 0:12:34]} 22. dxe5 {[%emt 0:00:12]} d4 {[%emt 0:00:34]} 23. e6 {[%emt 0:03:13]} dxc3 {[%emt 0:01:56]} 24. exf7+ {[%emt 0:05:56]} Nxf7 {[%emt 0:00:35]} 25. bxc3 {[%emt 0:00:55]} Rb8 {[%emt 0:03:27]} 26. Bd5 {[%emt 0:04:36]} Qa5 {[%emt 0:03:58]} 27. Qb3 {[%emt 0:00:51]} Rbd8 {[%emt 0:02:23]} 28. Rcd1 {[%emt 0:02:22]} Rd7 {[%emt 0:07:47]} 29. Bxf7+ {[%emt 0:03:54]} Rdxf7 {[%emt 0:00:03]} 30. Re7 {[%emt 0:00:44]} Qb5 {[%emt 0:02:25]} 31. Rxf7 {[%emt 0:02:50]} Rxf7 {[%emt 0:00:04]} 32. Qc2 {[%emt 0:00:56]} Qb6 {[%emt 0:01:25]} 33. Qd3 {[%emt 0:00:58]} Rf8 {[%emt 0:00:55]} 34. Qd5+ {[%emt 0:00:35]} Kh8 {[%emt 0:00:14]} 35. Qxg5 {[%emt 0:00:26]} Bh6 {[%emt 0:00:44]} 36. Qe5+ {[%emt 0:01:04]} Bg7 {[%emt 0:00:03]} 37. Qh5+ {[%emt 0:00:44]} Kg8 {[%emt 0:00:09]} 38. Qg5 {[%emt 0:01:01]} Qc7 {[%emt 0:00:52]} 39. Rd3 {[%emt 0:00:42]} Qe5 {[%emt 0:00:47]} 40. Qxe5 {[%emt 0:00:58]} Bxe5 {[%emt 0:00:01]} 41. Kg2 {[%emt 0:00:19]} Rc8 {[%emt 0:01:06]} 42. Kf3 {[%emt 0:00:18]} Rc4 {[%emt 0:00:19]} 43. Rd8+ {[%emt 0:01:06]} Kf7 {[%emt 0:00:03]} 44. Rd7+ {[%emt 0:00:06]} Ke6 {[%emt 0:00:08]} 45. Rxb7 {[%emt 0:00:22]} Rxc3+ {[%emt 0:00:03]} 46. Kg2 {[%emt 0:00:17]} Ra3 {[%emt 0:00:56]} 47. Rb4 {[%emt 0:01:15]} a5 {[%emt 0:00:52]} 48. Rb6+ {[%emt 0:01:18]} Kd5 {[%emt 0:00:05]} 49. f3 {[%emt 0:01:05]} Rxa2+ {[%emt 0:00:07]} 50. Kh3 {[%emt 0:00:05]} a4 {[%emt 0:00:43]} 51. Rb4 {[%emt 0:00:21]} Bd6 {[%emt 0:01:40]} 52. Re4 {[%emt 0:00:23]} Ra3 {[%emt 0:00:36]} 53. Kg2 {[%emt 0:00:26]} Ra2+ {[%emt 0:00:05]} 54. Kh3 {[%emt 0:00:07]} Ra3 {[%emt 0:00:24]} 55. Kg2 {[%emt 0:00:16]} Ra2+ {[%emt 0:00:17]} 1/2-1/2

[Event "SVK Amateur-ch 2020"]
[Site "Topolcany"]
[Date "2020.07.12"]
[Round "5.25"]
[White "Belus, Benjamin"]
[Black "Lach, Piotr"]
[Result "0-1"]
[ECO "A20"]
[WhiteElo "1919"]
[BlackElo "2086"]
[Annotator "ChessBase"]
[PlyCount "40"]
[EventDate "2020.07.10"]
[EventType "swiss"]
[EventCountry "SVK"]
[SourceTitle "playchess.com"]
[Source "ChessBase"]
[SourceQuality "1"]
[TimeControl "3600+30"]

1. c4 {[%emt 0:08:31]} e5 {[%emt 0:00:00]} 2. g3 {[%emt 0:00:04]} Nf6 {[%emt 0:00:39]} 3. Bg2 {[%emt 0:00:01]} d6 {[%emt 0:03:00]} 4. e3 {[%emt 0:00:09]} Be7 {[%emt 0:00:34]} 5. d4 {[%emt 0:00:02]} exd4 {[%emt 0:02:47]} 6. exd4 {[%emt 0:00:02]} O-O {[%emt 0:01:00]} 7. Ne2 {[%emt 0:00:02]} d5 {[%emt 0:01:29]} 8. b3 {[%emt 0:01:16]} c5 {[%emt 0:04:42]} 9. Nd2 {[%emt 0:05:29]} cxd4 {[%emt 0:02:04]} 10. Nxd4 {[%emt 0:01:30]} Bb4 {[%emt 0:09:41]} 11. Bb2 {[%emt 0:08:00]} Re8+ {[%emt 0:09:48]} 12. Ne2 {[%emt 0:05:39]} dxc4 {[%emt 0:02:08]} 13. bxc4 {[%emt 0:00:45]} Nc6 {[%emt 0:05:26]} 14. Bxf6 {[%emt 0:09:18]} gxf6 {[%emt 0:01:39]} 15. Bxc6 {[%emt 0:01:22]} bxc6 {[%emt 0:00:26]} 16. Rb1 {[%emt 0:00:05]} Bg4 {[%emt 0:02:51]} 17. Rxb4 {[%emt 0:16:44]} Rxe2+ {[%emt 0:00:24]} 18. Kf1 {[%emt 0:00:37]} Qxd2 {[%emt 0:00:25]} 19. Qxd2 {[%emt 0:01:07]} Rxd2 {[%emt 0:00:02]} 20. c5 {[%emt 0:00:54]} Bf3 {[%emt 0:00:47]} 0-1

[Event "SVK Amateur-ch 2020"]
[Site "Topolcany"]
[Date "2020.07.12"]
[Round "5.26"]
[White "Ladnak, Marek"]
[Black "Szitas, Gabor"]
[Result "0-1"]
[ECO "C54"]
[WhiteElo "1882"]
[BlackElo "2082"]
[Annotator "ChessBase"]
[PlyCount "96"]
[EventDate "2020.07.10"]
[EventType "swiss"]
[EventCountry "SVK"]
[SourceTitle "playchess.com"]
[Source "ChessBase"]
[SourceQuality "1"]
[TimeControl "3600+30"]

1. e4 {[%emt 0:00:00]} e5 {[%emt 0:00:00]} 2. Nf3 {[%emt 0:00:00]} Nc6 {[%emt 0:00:00]} 3. d4 {[%emt 0:00:00]} exd4 {[%emt 0:00:00]} 4. Bc4 {[%emt 0:00:01]} Bc5 {[%emt 0:01:22]} 5. c3 {[%emt 0:00:09]} Nf6 {[%emt 0:00:13]} 6. e5 {[%emt 0:03:10]} d5 {[%emt 0:00:40]} 7. Bb5 {[%emt 0:00:06]} Ne4 {[%emt 0:00:09]} 8. Nxd4 {[%emt 0:01:05]} Bd7 {[%emt 0:00:08]} 9. Bxc6 {[%emt 0:01:38]} bxc6 {[%emt 0:00:07]} 10. O-O {[%emt 0:00:20]} O-O {[%emt 0:01:21]} 11. Kh1 {[%emt 0:00:50]} Bb6 {[%emt 0:01:41]} 12. f3 {[%emt 0:01:46]} Ng5 {[%emt 0:00:10]} 13. f4 {[%emt 0:02:22]} Ne4 {[%emt 0:00:09]} 14. Be3 {[%emt 0:00:35]} c5 {[%emt 0:01:42]} 15. Nc2 {[%emt 0:02:52]} c6 {[%emt 0:03:26]} 16. Nd2 {[%emt 0:01:45]} Nxd2 {[%emt 0:03:32]} 17. Qxd2 {[%emt 0:01:32]} f6 {[%emt 0:08:43]} 18. exf6 {[%emt 0:06:20]} Qxf6 {[%emt 0:04:58]} 19. a4 {[%emt 0:02:20]} c4 {[%emt 0:08:52]} 20. a5 {[%emt 0:06:01]} Bxe3 {[%emt 0:16:01]} 21. Qxe3 {[%emt 0:00:08]} Bf5 {[%emt 0:00:10]} 22. Nb4 {[%emt 0:00:47]} Be4 {[%emt 0:00:25]} 23. Kg1 {[%emt 0:05:07]} Qg6 {[%emt 0:00:56]} 24. Rf2 {[%emt 0:01:29]} Qd6 {[%emt 0:00:40]} 25. Na6 {[%emt 0:03:35]} h5 {[%emt 0:00:37]} 26. Nc5 {[%emt 0:00:44]} Bf5 {[%emt 0:00:47]} 27. Qd4 {[%emt 0:01:51]} Rf6 {[%emt 0:01:13]} 28. Re1 {[%emt 0:02:12]} Rc8 {[%emt 0:02:40]} 29. Nb7 {[%emt 0:04:41]} Qb8 {[%emt 0:02:25]} 30. a6 {[%emt 0:00:33]} Be4 {[%emt 0:00:22]} 31. f5 {[%emt 0:06:12]} Re8 {[%emt 0:01:53]} 32. Rfe2 {[%emt 0:07:14]} Rxf5 {[%emt 0:01:07]} 33. Nc5 {[%emt 0:00:17]} Qf4 {[%emt 0:02:32]} 34. g3 {[%emt 0:03:38]} Qe5 {[%emt 0:05:26]} 35. Nxe4 {[%emt 0:04:55]} Qxd4+ {[%emt 0:00:36]} 36. cxd4 {[%emt 0:00:06]} dxe4 {[%emt 0:00:21]} 37. Rxe4 {[%emt 0:01:24]} Rxe4 {[%emt 0:00:07]} 38. Rxe4 {[%emt 0:00:04]} Ra5 {[%emt 0:00:03]} 39. Re8+ {[%emt 0:00:44]} Kf7 {[%emt 0:00:20]} 40. Rh8 {[%emt 0:00:06]} Rxa6 41. Rxh5 {[%emt 0:00:07]} Ra1+ {[%emt 0:03:05]} 42. Kg2 {[%emt 0:00:26]} Ra2 {[%emt 0:00:07]} 43. Rf5+ {[%emt 0:00:12]} Ke6 {[%emt 0:00:07]} 44. Rf2 {[%emt 0:00:07]} Kd5 {[%emt 0:00:20]} 45. Kf3 {[%emt 0:00:42]} a5 {[%emt 0:00:11]} 46. Ke3 {[%emt 0:00:27]} g6 {[%emt 0:00:46]} 47. h4 {[%emt 0:02:17]} c3 {[%emt 0:00:12]} 48. Kd3 {[%emt 0:00:30]} cxb2 {[%emt 0:00:30]} 0-1

[Event "SVK Amateur-ch 2020"]
[Site "Topolcany"]
[Date "2020.07.12"]
[Round "5.27"]
[White "Salgovic, Simon"]
[Black "Tropp, Oliver"]
[Result "0-1"]
[ECO "C06"]
[WhiteElo "1877"]
[BlackElo "2087"]
[Annotator "ChessBase"]
[PlyCount "54"]
[EventDate "2020.07.10"]
[EventType "swiss"]
[EventCountry "SVK"]
[SourceTitle "playchess.com"]
[Source "ChessBase"]
[SourceQuality "1"]
[TimeControl "3600+30"]

1. e4 {[%emt 0:00:00]} e6 {[%emt 0:00:00]} 2. d4 {[%emt 0:00:00]} d5 {[%emt 0:00:00]} 3. Nd2 {[%emt 0:00:00]} Nf6 {[%emt 0:00:00]} 4. e5 {[%emt 0:00:00]} Nfd7 {[%emt 0:00:00]} 5. Bd3 {[%emt 0:00:00]} c5 {[%emt 0:00:00]} 6. c3 {[%emt 0:00:02]} Nc6 {[%emt 0:00:00]} 7. Ne2 {[%emt 0:00:09]} cxd4 {[%emt 0:00:15]} 8. cxd4 {[%emt 0:00:06]} f6 {[%emt 0:00:03]} 9. exf6 {[%emt 0:03:24]} Nxf6 {[%emt 0:00:07]} 10. O-O {[%emt 0:00:08]} Bd6 {[%emt 0:00:11]} 11. Nf3 {[%emt 0:00:25]} Qc7 {[%emt 0:00:21]} 12. Bg5 {[%emt 0:00:50]} O-O {[%emt 0:00:05]} 13. Bh4 {[%emt 0:01:59]} Qb6 {[%emt 0:25:38]} 14. Qb1 {[%emt 0:10:22]} h6 {[%emt 0:00:55]} 15. a3 {[%emt 0:03:24]} Bd7 {[%emt 0:01:06]} 16. b4 {[%emt 0:03:15]} e5 {[%emt 0:12:35]} 17. dxe5 {[%emt 0:03:39]} Nxe5 {[%emt 0:00:05]} 18. Nxe5 {[%emt 0:00:29]} Bxe5 {[%emt 0:00:05]} 19. Ra2 {[%emt 0:00:10]} Ng4 {[%emt 0:16:05]} 20. Bg3 {[%emt 0:02:03]} Rae8 {[%emt 0:00:21]} 21. h3 {[%emt 0:01:42]} Bxg3 {[%emt 0:00:34]} 22. Nxg3 {[%emt 0:00:32]} Ne5 {[%emt 0:00:02]} 23. Bf5 {[%emt 0:08:31]} Bb5 {[%emt 0:01:19]} 24. Rd1 {[%emt 0:02:02]} g6 {[%emt 0:01:16]} 25. Bg4 {[%emt 0:02:17]} h5 {[%emt 0:01:13]} 26. Nxh5 {[%emt 0:01:23]} Nxg4 {[%emt 0:02:44]} 27. hxg4 {[%emt 0:00:03]} Be2 {[%emt 0:03:35]} 0-1

[Event "SVK Amateur-ch 2020"]
[Site "Topolcany"]
[Date "2020.07.12"]
[Round "5.30"]
[White "Stevik, Patrik ml."]
[Black "Verbytskiy, Patrik"]
[Result "1-0"]
[ECO "A01"]
[WhiteElo "2047"]
[BlackElo "1824"]
[Annotator "ChessBase"]
[PlyCount "57"]
[EventDate "2020.07.10"]
[EventType "swiss"]
[EventCountry "SVK"]
[SourceTitle "playchess.com"]
[Source "ChessBase"]
[SourceQuality "1"]
[TimeControl "3600+30"]

1. b3 {[%emt 0:00:00]} e5 {[%emt 0:00:00]} 2. Bb2 {[%emt 0:00:00]} Nc6 {[%emt 0:00:00]} 3. e3 {[%emt 0:00:00]} Nf6 {[%emt 0:00:00]} 4. Nf3 {[%emt 0:00:00]} Bd6 {[%emt 0:00:00]} 5. d4 {[%emt 0:00:19]} exd4 {[%emt 0:00:01]} 6. exd4 {[%emt 0:00:14]} O-O {[%emt 0:00:05]} 7. Be2 {[%emt 0:00:05]} Bb4+ {[%emt 0:00:49]} 8. c3 {[%emt 0:00:41]} Be7 {[%emt 0:00:13]} 9. d5 {[%emt 0:00:31]} Nb8 {[%emt 0:00:25]} 10. O-O {[%emt 0:00:46]} d6 {[%emt 0:00:37]} 11. c4 {[%emt 0:01:02]} c6 {[%emt 0:00:28]} 12. dxc6 {[%emt 0:01:19]} bxc6 {[%emt 0:00:11]} 13. Nc3 {[%emt 0:00:27]} Nbd7 {[%emt 0:00:36]} 14. Nd4 {[%emt 0:00:52]} Qc7 {[%emt 0:01:36]} 15. Bf3 {[%emt 0:00:57]} Ne5 {[%emt 0:01:10]} 16. Re1 {[%emt 0:04:48]} Rb8 {[%emt 0:00:32]} 17. Nxc6 {[%emt 0:04:38]} Nxc6 {[%emt 0:12:57]} 18. Bxc6 {[%emt 0:00:08]} Qxc6 {[%emt 0:00:06]} 19. Rxe7 {[%emt 0:00:05]} Bb7 {[%emt 0:00:07]} 20. Qf1 {[%emt 0:02:51]} d5 {[%emt 0:02:04]} 21. cxd5 {[%emt 0:01:46]} Nxd5 {[%emt 0:00:04]} 22. Nxd5 {[%emt 0:00:18]} Qxd5 {[%emt 0:00:01]} 23. Rd1 {[%emt 0:00:47]} Qc6 {[%emt 0:00:22]} 24. Rdd7 {[%emt 0:00:56]} Rfd8 {[%emt 0:00:13]} 25. Rc7 {[%emt 0:02:00]} Qd5 {[%emt 0:00:14]} 26. Rxf7 {[%emt 0:01:05]} Qxf7 {[%emt 0:00:09]} 27. Rxf7 {[%emt 0:00:04]} Kxf7 {[%emt 0:00:04]} 28. Qc4+ {[%emt 0:00:28]} Kf8 {[%emt 0:00:21]} 29. Ba3+ {[%emt 0:00:10]} 1-0

[Event "SVK Amateur-ch 2020"]
[Site "Topolcany"]
[Date "2020.07.12"]
[Round "5.31"]
[White "Skreko, Igor"]
[Black "Brnusak, Tomas"]
[Result "0-1"]
[ECO "E71"]
[WhiteElo "1761"]
[BlackElo "2028"]
[Annotator "ChessBase"]
[PlyCount "120"]
[EventDate "2020.07.10"]
[EventType "swiss"]
[EventCountry "SVK"]
[SourceTitle "playchess.com"]
[Source "ChessBase"]
[SourceQuality "1"]
[TimeControl "3600+30"]

1. d4 {[%emt 0:00:00]} Nf6 {[%emt 0:00:00]} 2. c4 {[%emt 0:00:00]} g6 {[%emt 0:00:00]} 3. Nc3 {[%emt 0:00:00]} Bg7 {[%emt 0:00:16]} 4. e4 {[%emt 0:00:00]} d6 {[%emt 0:00:07]} 5. h3 {[%emt 0:00:00]} O-O {[%emt 0:00:20]} 6. Bg5 {[%emt 0:00:02]} Nbd7 {[%emt 0:01:47]} 7. Nf3 {[%emt 0:00:30]} c6 {[%emt 0:00:40]} 8. Be2 {[%emt 0:01:10]} e5 {[%emt 0:01:12]} 9. d5 {[%emt 0:01:38]} Qc7 {[%emt 0:00:16]} 10. Nd2 {[%emt 0:01:32]} a5 {[%emt 0:00:52]} 11. g4 {[%emt 0:01:21]} Nc5 {[%emt 0:02:39]} 12. h4 {[%emt 0:02:59]} h6 {[%emt 0:00:18]} 13. Be3 {[%emt 0:00:22]} Nfd7 {[%emt 0:02:43]} 14. g5 {[%emt 0:03:29]} h5 {[%emt 0:00:11]} 15. Rg1 {[%emt 0:01:48]} a4 {[%emt 0:03:54]} 16. Rg3 {[%emt 0:03:06]} Nb6 {[%emt 0:14:14]} 17. a3 {[%emt 0:07:26]} cxd5 {[%emt 0:00:50]} 18. cxd5 {[%emt 0:01:10]} Qe7 {[%emt 0:01:58]} 19. Kf1 {[%emt 0:04:13]} f5 {[%emt 0:09:20]} 20. gxf6 {[%emt 0:03:44]} Qxf6 {[%emt 0:00:10]} 21. Nf3 {[%emt 0:03:38]} Bg4 {[%emt 0:00:43]} 22. Ng5 {[%emt 0:02:36]} Nc4 {[%emt 0:02:36]} 23. Qe1 {[%emt 0:06:05]} Nxe3+ {[%emt 0:02:01]} 24. Rxe3 {[%emt 0:00:09]} Qf4 {[%emt 0:00:44]} 25. Kg2 {[%emt 0:06:48]} Nb3 {[%emt 0:02:46]} 26. Bxg4 {[%emt 0:01:19]} Qxg4+ {[%emt 0:01:09]} 27. Rg3 {[%emt 0:00:07]} Qxh4 {[%emt 0:00:21]} 28. Ne6 {[%emt 0:00:19]} Nxa1 {[%emt 0:01:03]} 29. Nxf8 {[%emt 0:01:54]} Rxf8 {[%emt 0:00:14]} 30. Qxa1 {[%emt 0:00:08]} Qf4 {[%emt 0:00:45]} 31. Qe1 {[%emt 0:02:22]} g5 {[%emt 0:01:35]} 32. Qe2 {[%emt 0:01:46]} g4 {[%emt 0:00:55]} 33. Nxa4 {[%emt 0:01:05]} Bf6 {[%emt 0:00:59]} 34. Kg1 {[%emt 0:03:14]} Bh4 {[%emt 0:00:40]} 35. Rg2 {[%emt 0:00:05]} g3 {[%emt 0:02:30]} 36. Nc3 {[%emt 0:02:30]} Qc1+ {[%emt 0:07:54]} 37. Nd1 {[%emt 0:00:34]} Rxf2 {[%emt 0:00:33]} 38. Rxf2 {[%emt 0:03:00]} gxf2+ {[%emt 0:00:06]} 39. Kf1 {[%emt 0:00:06]} Qg5 {[%emt 0:03:20]} 40. Nxf2 {[%emt 0:00:48]} Qf4 {[%emt 0:00:03]} 41. Kg1 {[%emt 0:01:15]} Bxf2+ {[%emt 0:00:05]} 42. Qxf2 {[%emt 0:00:04]} Qxe4 {[%emt 0:00:06]} 43. Qf6 {[%emt 0:01:51]} Qe3+ {[%emt 0:01:14]} 44. Kg2 {[%emt 0:00:12]} Qe2+ {[%emt 0:00:09]} 45. Kg1 {[%emt 0:00:23]} Qg4+ {[%emt 0:00:07]} 46. Kf2 {[%emt 0:00:14]} Qd4+ {[%emt 0:01:10]} 47. Kg3 {[%emt 0:00:51]} Qg4+ {[%emt 0:01:08]} 48. Kf2 {[%emt 0:00:31]} Qf4+ {[%emt 0:00:53]} 49. Qxf4 {[%emt 0:00:06]} exf4 {[%emt 0:00:02]} 50. Kf3 {[%emt 0:00:19]} Kf7 {[%emt 0:00:03]} 51. Kxf4 {[%emt 0:01:04]} Kf6 {[%emt 0:00:03]} 52. a4 {[%emt 0:02:33]} h4 {[%emt 0:00:11]} 53. a5 {[%emt 0:00:17]} h3 {[%emt 0:00:06]} 54. Kg3 {[%emt 0:00:06]} Ke5 {[%emt 0:00:05]} 55. Kxh3 {[%emt 0:01:33]} Kxd5 {[%emt 0:00:04]} 56. Kg3 {[%emt 0:00:24]} Kd4 {[%emt 0:02:51]} 57. Kf3 {[%emt 0:01:43]} Kd3 {[%emt 0:00:16]} 58. Kf4 {[%emt 0:01:39]} d5 {[%emt 0:00:08]} 59. b4 {[%emt 0:00:46]} Kc4 {[%emt 0:00:11]} 60. Ke5 {[%emt 0:00:28]} Kxb4 {[%emt 0:00:43]} 0-1

[Event "SVK Amateur-ch 2020"]
[Site "Topolcany"]
[Date "2020.07.12"]
[Round "5.32"]
[White "Pietrzak, Tomasz"]
[Black "Tropp, Frantisek"]
[Result "0-1"]
[ECO "E01"]
[WhiteElo "1896"]
[BlackElo "2032"]
[Annotator "ChessBase"]
[PlyCount "88"]
[EventDate "2020.07.10"]
[EventType "swiss"]
[EventCountry "SVK"]
[SourceTitle "playchess.com"]
[Source "ChessBase"]
[SourceQuality "1"]
[TimeControl "3600+30"]

1. d4 {[%emt 0:00:00]} Nf6 {[%emt 0:00:00]} 2. c4 {[%emt 0:00:00]} e6 {[%emt 0:00:00]} 3. g3 {[%emt 0:00:00]} d5 {[%emt 0:01:51]} 4. Bg2 {[%emt 0:00:08]} c6 {[%emt 0:02:37]} 5. Qc2 {[%emt 0:04:12]} Bd6 {[%emt 0:00:43]} 6. Nf3 {[%emt 0:00:20]} Nbd7 {[%emt 0:00:13]} 7. O-O {[%emt 0:01:27]} O-O {[%emt 0:00:25]} 8. Nbd2 {[%emt 0:01:59]} Re8 {[%emt 0:02:21]} 9. e4 {[%emt 0:05:02]} Nxe4 {[%emt 0:02:43]} 10. Nxe4 {[%emt 0:00:06]} dxe4 {[%emt 0:00:07]} 11. Qxe4 {[%emt 0:00:05]} e5 {[%emt 0:03:54]} 12. dxe5 {[%emt 0:19:26]} Nxe5 {[%emt 0:00:25]} 13. Nxe5 {[%emt 0:02:50]} Bxe5 {[%emt 0:00:36]} 14. Qc2 {[%emt 0:02:06]} Qf6 {[%emt 0:00:13]} 15. Qb3 {[%emt 0:08:16]} Rb8 {[%emt 0:08:02]} 16. Be3 {[%emt 0:03:06]} a6 {[%emt 0:06:57]} 17. Rae1 {[%emt 0:05:53]} Be6 {[%emt 0:02:29]} 18. Ba7 {[%emt 0:01:20]} Rbc8 {[%emt 0:01:14]} 19. Re4 {[%emt 0:04:31]} b5 {[%emt 0:03:09]} 20. Rfe1 {[%emt 0:00:37]} bxc4 {[%emt 0:00:14]} 21. Qe3 {[%emt 0:00:24]} Bxb2 {[%emt 0:00:38]} 22. f4 {[%emt 0:02:42]} Red8 {[%emt 0:06:11]} 23. Bh3 {[%emt 0:02:45]} h6 {[%emt 0:02:19]} 24. Bxe6 {[%emt 0:00:18]} fxe6 {[%emt 0:00:08]} 25. Rxe6 {[%emt 0:00:39]} Qf5 {[%emt 0:02:03]} 26. Re7 {[%emt 0:01:33]} Bf6 {[%emt 0:01:22]} 27. Re4 {[%emt 0:00:45]} c3 {[%emt 0:03:30]} 28. Bb6 {[%emt 0:00:50]} Rd2 {[%emt 0:00:16]} 29. Bd4 {[%emt 0:01:41]} Rxd4 {[%emt 0:05:51]} 30. Rxd4 {[%emt 0:00:14]} Bxd4 {[%emt 0:01:22]} 31. Qxd4 {[%emt 0:00:04]} c2 {[%emt 0:01:38]} 32. Qc4+ {[%emt 0:00:06]} Kh8 {[%emt 0:01:31]} 33. Rc1 {[%emt 0:00:04]} Rd8 {[%emt 0:01:14]} 34. Qxc2 {[%emt 0:00:18]} Qa5 {[%emt 0:03:07]} 35. Qxc6 {[%emt 0:01:08]} Qxa2 {[%emt 0:00:05]} 36. Qc7 {[%emt 0:01:00]} Qd2 {[%emt 0:00:28]} 37. Rc2 {[%emt 0:02:00]} Qe1+ {[%emt 0:01:01]} 38. Kg2 {[%emt 0:00:10]} Qe4+ {[%emt 0:00:11]} 39. Kf2 {[%emt 0:00:40]} Rd3 {[%emt 0:00:30]} 40. Qc8+ {[%emt 0:00:36]} Kh7 {[%emt 0:00:08]} 41. Qc6 {[%emt 0:00:30]} Rd2+ {[%emt 0:00:06]} 42. Rxd2 {[%emt 0:00:36]} Qxc6 {[%emt 0:00:05]} 43. Re2 {[%emt 0:00:30]} a5 {[%emt 0:00:07]} 44. Re3 {[%emt 0:00:10]} a4 0-1

[Event "SVK Amateur-ch 2020"]
[Site "Topolcany"]
[Date "2020.07.13"]
[Round "6.1"]
[White "Pirvulescu, Adrian"]
[Black "Kolesar, Peter"]
[Result "0-1"]
[ECO "A43"]
[WhiteElo "1909"]
[BlackElo "1991"]
[Annotator "ChessBase"]
[PlyCount "62"]
[EventDate "2020.07.10"]
[EventType "swiss"]
[EventCountry "SVK"]
[SourceTitle "playchess.com"]
[Source "ChessBase"]
[SourceQuality "1"]
[TimeControl "3600+30"]

1. e4 {[%emt 0:00:00]} e6 {[%emt 0:00:14]} 2. d4 {[%emt 0:00:00]} c5 {[%emt 0:00:20]} 3. d5 {[%emt 0:00:00]} exd5 {[%emt 0:00:15]} 4. exd5 {[%emt 0:00:00]} d6 {[%emt 0:00:14]} 5. c4 {[%emt 0:04:14]} g6 {[%emt 0:00:14]} 6. Bd3 {[%emt 0:02:40]} Bg7 {[%emt 0:02:12]} 7. h3 {[%emt 0:00:21]} Ne7 {[%emt 0:04:33]} 8. Nf3 {[%emt 0:01:35]} O-O {[%emt 0:00:14]} 9. O-O {[%emt 0:00:17]} Bf5 {[%emt 0:03:17]} 10. Nc3 {[%emt 0:00:32]} a6 {[%emt 0:00:37]} 11. a4 {[%emt 0:04:58]} Nd7 {[%emt 0:01:03]} 12. Bf4 {[%emt 0:06:01]} Nf6 {[%emt 0:08:52]} 13. a5 {[%emt 0:02:56]} Qd7 {[%emt 0:03:35]} 14. Na4 {[%emt 0:09:03]} Rad8 {[%emt 0:01:34]} 15. Nb6 {[%emt 0:00:37]} Qc7 {[%emt 0:00:26]} 16. Ra3 {[%emt 0:02:50]} Bxd3 {[%emt 0:02:30]} 17. Qxd3 {[%emt 0:01:37]} Nh5 {[%emt 0:03:50]} 18. Bc1 {[%emt 0:06:50]} h6 {[%emt 0:00:55]} 19. Qc2 {[%emt 0:06:20]} Kh7 {[%emt 0:13:52]} 20. Bd2 {[%emt 0:00:04]} Rfe8 {[%emt 0:00:53]} 21. Rb1 {[%emt 0:03:52]} Nc8 {[%emt 0:02:45]} 22. Nxc8 {[%emt 0:01:30]} Rxc8 {[%emt 0:00:36]} 23. Re1 {[%emt 0:02:06]} Rxe1+ {[%emt 0:00:20]} 24. Bxe1 {[%emt 0:00:49]} Re8 {[%emt 0:00:59]} 25. Kf1 {[%emt 0:01:30]} Nf6 {[%emt 0:00:34]} 26. Nd2 {[%emt 0:04:19]} Qd8 {[%emt 0:05:01]} 27. Rb3 {[%emt 0:01:51]} Re7 {[%emt 0:01:40]} 28. Rb6 {[%emt 0:01:28]} Ne8 {[%emt 0:01:13]} 29. Qb3 {[%emt 0:00:41]} Qd7 {[%emt 0:00:16]} 30. f3 {[%emt 0:00:59]} Qf5 {[%emt 0:06:49]} 31. Ne4 {[%emt 0:01:59]} Rxe4 {[%emt 0:00:43]} 0-1